fUST/lending_fUST_20260209
["ID","MTS","AMOUNT","RATE_DAILY","PERIOD"]
[404885654,1770649648607,-199.999999,0.00045,120]
[404885655,1770649648634,-470.96652693,0.00045,120]
[404885656,1770649648656,-599.82425668,0.00045,120]
[404885657,1770649648682,-720.0,0.00045308,60]
[404885658,1770649648709,-515.56,0.00045344,120]
[404885659,1770649648733,-233.08,0.0004535,120]
[404885660,1770649648756,-200.0,0.00045435,120]
[404885661,1770649648778,-1397.88,0.000455,14]
[404885662,1770649648800,-440.06,0.00045553,120]
[404885663,1770649648821,-4116.3,0.000456,2]
[404885664,1770649648847,-200.0,0.00045885,120]
[404885665,1770649648874,-300.0,0.00046,120]
[404885666,1770649648895,-200.0,0.00046017,120]
[404885667,1770649648916,-200.0,0.00046079,120]
[404885668,1770649648938,-515.56,0.00046432,120]
[404885669,1770649648958,-1444.0,0.00046466,120]
[404885670,1770649648982,-200.0,0.00046657,120]
[404885671,1770649649002,-200.0,0.00046718,120]
[404885672,1770649649023,-200.0,0.00046853,120]
[404885673,1770649649044,-200.0,0.0004699,120]
[404885674,1770649649068,-515.56,0.0004752,120]
[404885675,1770649649089,-158.47114143,0.00048,14]
[404885676,1770649649110,-300.0,0.00048,120]
[404885677,1770649649130,-510.53633331,0.00048,120]
[404885678,1770649649150,-152.13290659,0.00048,120]
[404885679,1770649649170,-1000.0,0.00048,120]
[404885680,1770649649190,-200.0,0.000482,120]
[404885681,1770649649213,-515.56,0.00048608,120]
[404885682,1770649649236,-245.0,0.0004865,77]
[404885683,1770649649256,-1000.0,0.00048767,2]
[404885684,1770649649277,-207.34145021,0.000488,2]
[404885685,1770649649299,-1397.88,0.000488,14]
[404885686,1770649649321,-160.0,0.00048932,90]
[404885687,1770649649342,-160.0,0.00048946,4]
[404885688,1770649649363,-161.10912684,0.00048946,5]
[404885689,1770649649382,-317.37566998,0.00049,15]
[404885690,1770649649402,-179.08545686,0.00049096,2]
[404885691,1770649649423,-4116.3,0.000491,2]
[404885692,1770649649446,-151.0,0.00049315,30]
[404885693,1770649649472,-442.62515395,0.00049315,120]
[404885694,1770649649494,-500.0,0.00049315,120]
[404885695,1770649649516,-500.0,0.00049315,120]
[404885696,1770649649540,-500.0,0.00049315,120]
[404885697,1770649649716,-212.56189916,0.00049315,120]
[404885698,1770649649746,-500.0,0.00049315,120]
[404885699,1770649649768,-1000.0,0.00049315,2]
[404885700,1770649649789,-500.0,0.00049315,120]
[404885701,1770649649810,-500.0,0.00049315,120]
[404885702,1770649649832,-579.04719475,0.00049315,120]
[404885703,1770649649852,-500.0,0.00049315,120]
[404885704,1770649649874,-500.0,0.00049315,120]
[404885705,1770649649895,-500.0,0.00049315,120]
[404885706,1770649649915,-500.0,0.00049315,120]
[404885707,1770649649935,-334.52277967,0.00049315,120]
[404885708,1770649649955,-500.0,0.00049315,120]
[404885709,1770649649977,-441.09052783,0.00049315,120]
[404885710,1770649649999,-500.0,0.00049315,120]
[404885711,1770649650020,-599.32973032,0.00049315,120]
[404885712,1770649650041,-221.38150099,0.00049315,120]
[404885713,1770649650061,-500.0,0.00049315,120]
[404885714,1770649650082,-500.0,0.00049315,120]
[404885715,1770649650104,-500.0,0.00049315,53]
[404885716,1770649650126,-500.0,0.00049315,120]
[404885717,1770649650147,-389.60397015,0.00049315,120]
[404885718,1770649650168,-500.0,0.00049315,120]
[404885719,1770649650189,-500.0,0.00049315,120]
[404885720,1770649650210,-500.0,0.00049315,120]
[404885721,1770649650234,-500.0,0.00049315,2]
[404885722,1770649650255,-513.99985955,0.00049315,120]
[404885723,1770649650276,-505.65355948,0.00049315,120]
[404885724,1770649650298,-500.0,0.00049315,120]
[404885725,1770649650319,-297.74052114,0.00049315,120]
[404885726,1770649650342,-500.0,0.00049315,120]
[404885727,1770649650362,-169.72675475,0.00049315,120]
[404885728,1770649650383,-500.0,0.00049315,120]
[404885729,1770649650402,-525.31812738,0.00049315,120]
[404885730,1770649650422,-380.65462605,0.00049315,120]
[404885731,1770649650442,-500.0,0.00049315,120]
[404885732,1770649650462,-241.0534214,0.00049315,120]
[404885733,1770649650484,-535.44374016,0.00049315,120]
[404885734,1770649650505,-797.77,0.00049315,120]
[404885735,1770649650525,-500.0,0.00049315,120]
[404885736,1770649650546,-617.98585279,0.00049315,120]
[404885737,1770649650568,-509.54767179,0.00049315,120]
[404885738,1770649650589,-500.0,0.00049315,120]
[404885739,1770649650609,-500.0,0.00049315,120]
[404885740,1770649650634,-500.0,0.00049315,120]
[404885741,1770649650655,-500.0,0.00049315,2]
[404885742,1770649650677,-500.0,0.00049315,120]
[404885743,1770649650697,-500.0,0.00049315,120]
[404885744,1770649650716,-506.5864833,0.00049315,120]
[404885745,1770649650738,-218.56071638,0.00049315,120]
[404885746,1770649650759,-500.0,0.00049315,120]
[404885747,1770649650780,-500.0,0.00049315,120]
[404885748,1770649650802,-550.28,0.00049315,120]
[404885749,1770649650822,-247.70287884,0.00049315,120]
[404885750,1770649650843,-500.0,0.00049315,120]
[404885751,1770649650863,-500.0,0.00049315,120]
[404885752,1770649650883,-552.57922192,0.00049315,120]
[404885753,1770649650903,-500.0,0.00049315,120]
[404885754,1770649650929,-500.0,0.00049315,120]
[404885755,1770649650949,-500.0,0.00049315,120]
[404885756,1770649650971,-500.0,0.00049315,120]
[404885757,1770649650994,-500.0,0.00049315,120]
[404885758,1770649651015,-500.0,0.00049315,120]
[404885759,1770649651036,-500.0,0.00049315,120]
[404885760,1770649651058,-500.0,0.00049315,120]
[404885761,1770649651079,-636.44,0.00049315,120]
[404885762,1770649651099,-311.22459131,0.00049315,120]
[404885763,1770649651120,-500.0,0.00049315,120]
[404885764,1770649651141,-500.0,0.00049315,120]
[404885765,1770649651161,-500.0,0.00049315,120]
[404885766,1770649651181,-500.0,0.00049315,120]
[404885767,1770649651202,-627.82893971,0.00049315,120]
[404885768,1770649651223,-500.0,0.00049315,2]
[404885769,1770649651243,-500.0,0.00049315,120]
[404885770,1770649651263,-500.0,0.00049315,14]
[404885771,1770649651283,-500.0,0.00049315,120]
[404885772,1770649651304,-2499.97,0.00049315,2]
[404885773,1770649651324,-598.84902679,0.00049315,120]
[404885774,1770649651343,-546.05,0.00049315,120]
[404885775,1770649651363,-500.0,0.00049315,120]
[404885776,1770649651383,-502.57337799,0.00049315,120]
[404885777,1770649651403,-504.02229482,0.00049315,120]
[404885778,1770649651424,-502.92869266,0.00049315,120]
[404885779,1770649651450,-507.2854192,0.00049315,120]
[404885780,1770649651474,-500.0,0.00049315,120]
[404885781,1770649651496,-505.03409457,0.00049315,120]
[404885782,1770649651517,-500.0,0.00049315,120]
[404885783,1770649651537,-500.0,0.00049315,120]
[404885784,1770649651559,-500.0,0.00049315,120]
[404885785,1770649651584,-500.0,0.00049315,120]
[404885786,1770649651610,-500.0,0.00049315,120]
[404885787,1770649651636,-541.08238246,0.00049315,120]
[404885788,1770649651657,-158.58199034,0.00049315,120]
[404885789,1770649651678,-503.12800076,0.00049315,120]
[404885790,1770649651699,-500.0,0.00049315,120]
[404885791,1770649651719,-511.05107971,0.00049315,120]
[404885792,1770649651743,-510.7724401,0.00049315,120]
[404885793,1770649651764,-511.33055604,0.00049315,120]
[404885794,1770649651783,-437.63200818,0.00049315,120]
[404885795,1770649651804,-500.0,0.00049315,120]
[404885796,1770649651825,-511.18253465,0.00049315,120]
[404885797,1770649651847,-170.01195029,0.00049315,120]
[404885798,1770649651869,-531.3207868,0.00049315,120]
[404885799,1770649651888,-505.89292446,0.00049315,120]
[404885800,1770649651908,-189.83023233,0.00049315,120]
[404885801,1770649651928,-189.90833044,0.00049315,120]
[404885802,1770649651950,-502.53309437,0.00049315,120]
[404885803,1770649651972,-158.82869099,0.00049315,120]
[404885804,1770649651994,-500.0,0.00049315,120]
[404885805,1770649652014,-450.61697123,0.00049315,120]
[404885806,1770649652036,-156.56539319,0.00049315,120]
[404885807,1770649652056,-584.76911445,0.00049315,120]
[404885808,1770649652076,-802.85,0.00049315,120]
[404885809,1770649652096,-500.0,0.00049315,120]
[404885810,1770649652117,-500.0,0.00049315,120]
[404885811,1770649652143,-500.0,0.00049315,120]
[404885812,1770649652171,-500.0,0.00049315,120]
[404885813,1770649652193,-269.88528336,0.00049315,120]
[404885814,1770649652214,-500.0,0.00049315,120]
[404885815,1770649652236,-336.27698735,0.00049315,120]
[404885816,1770649652359,-519.40443681,0.00049315,120]
[404885817,1770649652383,-500.0,0.00049315,120]
[404885818,1770649652406,-542.75050476,0.00049315,120]
[404885819,1770649652428,-500.0,0.00049315,120]
[404885820,1770649652451,-161.88094603,0.00049315,120]
[404885821,1770649652474,-587.87,0.00049315,120]
[404885822,1770649652511,-439.90680621,0.00049315,120]
[404885823,1770649652535,-859.94,0.00049315,120]
[404885824,1770649652559,-543.79984557,0.00049315,120]
[404885825,1770649652586,-500.0,0.00049315,120]
[404885826,1770649652610,-500.0,0.00049315,120]
[404885827,1770649652634,-519.52134805,0.00049315,120]
[404885828,1770649652656,-499.22393283,0.00049315,120]
[404885829,1770649652679,-500.0,0.00049315,7]
[404885830,1770649652701,-566.20326143,0.00049315,120]
[404885831,1770649652728,-500.0,0.00049315,120]
[404885832,1770649652751,-500.0,0.00049315,120]
[404885833,1770649652773,-500.0,0.00049315,120]
[404885834,1770649652796,-282.46176837,0.00049315,120]
[404885835,1770649652817,-500.0,0.00049315,120]
[404885836,1770649652839,-500.0,0.00049315,120]
[404885837,1770649652860,-500.0,0.00049315,120]
[404885838,1770649652881,-500.0,0.00049315,120]
[404885839,1770649652903,-263.38553367,0.00049315,120]
[404885840,1770649652924,-500.0,0.00049315,120]
[404885841,1770649652946,-522.80758013,0.00049315,120]
[404885842,1770649652968,-617.90712018,0.00049315,120]
[404885843,1770649652996,-500.0,0.00049315,120]
[404885844,1770649653021,-500.0,0.00049315,8]
[404885845,1770649653047,-153.38436167,0.00049315,120]
[404885846,1770649653072,-270.51614372,0.00049315,120]
[404885847,1770649653096,-500.0,0.00049315,120]
[404885848,1770649653126,-189.35931067,0.00049315,120]
[404885849,1770649653152,-500.0,0.00049315,120]
[404885850,1770649653176,-500.0,0.00049315,120]
[404885851,1770649653198,-500.0,0.00049315,120]
[404885852,1770649653221,-166.22879273,0.00049315,120]
[404885853,1770649653247,-880.16,0.00049315,120]
[404885854,1770649653272,-527.46293757,0.00049315,120]
[404885855,1770649653297,-500.0,0.00049315,120]
[404885856,1770649653320,-500.93074508,0.00049315,120]
[404885857,1770649653344,-208.40709229,0.00049315,120]
[404885858,1770649653366,-500.0,0.00049315,120]
[404885859,1770649653388,-573.47644109,0.00049315,120]
[404885860,1770649653413,-500.0,0.00049315,120]
[404885861,1770649653436,-500.0,0.00049315,120]
[404885862,1770649653458,-500.0,0.00049315,120]
[404885863,1770649653480,-500.0,0.00049315,120]
[404885864,1770649653502,-500.0,0.00049315,120]
[404885865,1770649653524,-520.12771957,0.00049315,120]
[404885866,1770649653547,-500.0,0.00049315,120]
[404885867,1770649653571,-213.21553117,0.00049315,120]
[404885868,1770649653612,-4901.28,0.00049315,2]
[404885869,1770649653641,-500.0,0.00049315,120]
[404885870,1770649653661,-500.0,0.00049315,120]
[404885871,1770649653682,-193.9518494,0.00049315,120]
[404885872,1770649653702,-500.0,0.00049315,120]
[404885873,1770649653722,-500.0,0.00049315,120]
[404885874,1770649653744,-555.82714739,0.00049315,120]
[404885875,1770649653765,-529.171065,0.00049315,120]
[404885876,1770649653785,-500.0,0.00049315,30]
[404885877,1770649653807,-500.0,0.00049315,120]
[404885878,1770649653829,-500.0,0.00049315,120]
[404885879,1770649653851,-500.0,0.00049315,120]
[404885880,1770649653871,-504.03927025,0.00049315,120]
[404885881,1770649653893,-500.0,0.00049315,120]
[404885882,1770649653915,-194.59245267,0.00049315,120]
[404885883,1770649653939,-741.78,0.00049315,30]
[404885884,1770649653960,-500.0,0.00049315,120]
[404885885,1770649653984,-500.0,0.00049315,120]
[404885886,1770649654006,-160.35280439,0.00049315,120]
[404885887,1770649654027,-500.0,0.00049315,120]
[404885888,1770649654049,-244.44434144,0.00049315,120]
[404885889,1770649654071,-500.0,0.00049315,120]
[404885890,1770649654095,-500.0,0.00049315,120]
[404885891,1770649654117,-153.00837104,0.00049315,120]
[404885892,1770649654140,-620.66,0.00049315,120]
[404885893,1770649654162,-37716.4457859,0.00049315,20]
[404885951,1770649832020,-1023.8,0.00037273,2]
[404886116,1770649843717,-1890.9258256,0.00037273,2]
[404886117,1770649843726,-460.0,0.00037464,30]
[404886118,1770649843736,-5022.26738451,0.00040282,2]
[404886119,1770649843746,-154.19465255,0.00040381,31]
[404886120,1770649843755,-200.0,0.00040381,31]
[404886121,1770649843765,-7069.76893613,0.00040382,15]
[404886122,1770649843774,-150.0,0.00040382,2]
[404886123,1770649843784,-92318.66073078,0.00040382,2]
[404886124,1770649843794,-300.0,0.00040382,2]
[404886125,1770649843803,-2030.81447972,0.00040382,2]
[404886126,1770649843875,-1010.48959772,0.00040382,2]
[404886127,1770649843912,-19876.82512517,0.00040382,2]
[404886128,1770649843921,-3929.1501383,0.00040382,2]
[404886129,1770649843931,-819.2898875,0.00040382,2]
[404886130,1770649843940,-402569.95416168,0.00040382,3]
[404886133,1770649844909,-2500.0,0.0004,6]
[404886134,1770649844919,-1270.41738432,0.00040282,28]
[404886135,1770649844928,-4371.69056792,0.00040382,3]
[404886136,1770649844939,-3311.62044351,0.00040382,3]
[404886177,1770649845938,-172.98,0.0004,30]
[404886178,1770649845947,-177135.24746453,0.00040382,3]
[404886179,1770649845959,-1350624.14936282,0.00040382,3]
[404886180,1770649845968,-244.88256475,0.00040382,10]
[404886181,1770649845977,-515.36674515,0.00040382,2]
[404886182,1770649845986,-330.79283582,0.00040382,2]
[404886183,1770649845995,-1844.86969132,0.00040382,2]
[404886184,1770649846004,-295.22470741,0.00040382,2]
[404886185,1770649846013,-198.06761937,0.00040382,12]
[404886186,1770649846022,-52324.1738062,0.00040382,2]
[404886187,1770649846031,-644.63647166,0.00040382,2]
[404886188,1770649846041,-1377.64490558,0.00040382,2]
[404886189,1770649846051,-158.43511531,0.00040382,2]
[404886190,1770649846060,-1271.51378175,0.00040382,2]
[404886191,1770649846069,-710.7035358,0.00040382,2]
[404886192,1770649846079,-21821.99932072,0.00040382,2]
[404886193,1770649846089,-6371.21908575,0.00040382,2]
[404886194,1770649846099,-159.40745714,0.00040382,2]
[404886195,1770649846108,-29180.43286121,0.00040382,2]
[404886196,1770649846121,-18061.72202,0.00040382,2]
[404886197,1770649846139,-1142.3617184,0.00040382,2]
[404886198,1770649846150,-57563.78882589,0.00040382,2]
[404886199,1770649846160,-1736.76985948,0.00040382,2]
[404886200,1770649846169,-7568.05624827,0.00040382,2]
[404886201,1770649846178,-263.40937854,0.00040382,2]
[404886202,1770649846188,-200.0,0.00040382,10]
[404886203,1770649846198,-513.24584394,0.00040382,2]
[404886204,1770649846207,-185.92734485,0.00040382,2]
[404886205,1770649846216,-473.07120437,0.00040382,2]
[404886206,1770649846226,-498.0,0.00040382,7]
[404886207,1770649846236,-30792.22493393,0.00040382,2]
[404886208,1770649846246,-191.24519744,0.00040382,2]
[404886209,1770649846255,-1208.25871143,0.00040382,2]
[404886210,1770649846265,-1412.27882364,0.00040382,2]
[404886211,1770649846275,-658.34722763,0.00040382,2]
[404886212,1770649846285,-2920.0,0.00040382,2]
[404886213,1770649846294,-156.69555431,0.00040382,7]
[404886214,1770649846304,-827.92397567,0.00040382,15]
[404886215,1770649846314,-200.33508775,0.00040382,2]
[404886216,1770649846324,-389.77868469,0.00040382,2]
[404886217,1770649846334,-203.5625365,0.00040382,2]
[404886218,1770649846343,-3182.88492387,0.00040382,2]
[404886219,1770649846353,-179211.72774558,0.00040382,2]
[404886220,1770649846362,-151.99214375,0.00040382,2]
[404886221,1770649846372,-261.45237221,0.00040382,2]
[404886222,1770649846383,-179.19419775,0.00040382,7]
[404886223,1770649846393,-3809.99745456,0.00040382,2]
[404886224,1770649846402,-158.0,0.00040382,10]
[404886225,1770649846412,-344.34794522,0.00040382,10]
[404886226,1770649846422,-676.59929588,0.00040382,2]
[404886227,1770649846432,-20129.84563928,0.00040382,2]
[404886228,1770649846441,-1001.6770727,0.00040382,2]
[404886229,1770649846451,-859.35483211,0.00040382,5]
[404886230,1770649846461,-1679.19009234,0.00040382,2]
[404886231,1770649846470,-154.69404633,0.00040382,2]
[404886232,1770649846480,-327.31797051,0.00040382,2]
[404886233,1770649846489,-329.14323791,0.00040382,2]
[404886234,1770649846498,-245.63613653,0.00040382,10]
[404886235,1770649846508,-150.0,0.00040382,7]
[404886236,1770649846517,-258.88879559,0.00040382,2]
[404886237,1770649846526,-150.33237147,0.00040382,2]
[404886238,1770649846536,-300.53659999,0.00040382,2]
[404886239,1770649846545,-1578.78151366,0.00040382,7]
[404886240,1770649846554,-2817.08197791,0.00040382,7]
[404886241,1770649846564,-2747.72129499,0.00040382,7]
[404886242,1770649846573,-2554.14209131,0.00040382,7]
[404886243,1770649846583,-52726.38943352,0.00040382,2]
[404886244,1770649846592,-267.81776374,0.00040382,2]
[404886245,1770649846602,-4347.39913361,0.00040382,7]
[404886246,1770649846612,-281.55305592,0.00040382,5]
[404886247,1770649846626,-12862.21858425,0.00040382,2]
[404886248,1770649846637,-944.485141,0.00040382,2]
[404886249,1770649846647,-30042.37749911,0.00040382,2]
[404886250,1770649846657,-1115.61735254,0.00040382,10]
[404886251,1770649846669,-1569.65379518,0.00040382,14]
[404886252,1770649846678,-1550.4039414,0.00040382,15]
[404886253,1770649846687,-1184.88228162,0.00040382,15]
[404886254,1770649846697,-190569.07,0.00040382,6]
[404886255,1770649846707,-4000.0,0.00040382,10]
[404886256,1770649846717,-328.66057608,0.00040382,2]
[404886257,1770649846726,-495.3627,0.00040382,120]
[404886258,1770649846736,-495.3627,0.00040382,120]
[404886259,1770649846745,-246.97539599,0.00040382,120]
[404886260,1770649846754,-191.55816658,0.00040382,120]
[404886261,1770649846764,-300.38508798,0.00040382,120]
[404886262,1770649846774,-191.55816658,0.00040382,120]
[404886263,1770649846784,-300.38508798,0.00040382,120]
[404886264,1770649846793,-300.38508798,0.00040382,120]
[404886265,1770649846803,-246.97539599,0.00040382,120]
[404886266,1770649846812,-231.7897958,0.00040382,120]
[404886267,1770649846821,-246.97539599,0.00040382,120]
[404886268,1770649846831,-231.7897958,0.00040382,120]
[404886269,1770649846841,-246.97539599,0.00040382,120]
[404886270,1770649846850,-246.97539599,0.00040382,120]
[404886271,1770649846859,-246.97539599,0.00040382,120]
[404886272,1770649846868,-246.97539599,0.00040382,120]
[404886273,1770649846877,-500.0,0.00040382,120]
[404886274,1770649846887,-231.7897958,0.00040382,120]
[404886275,1770649846897,-246.97539595,0.00040382,120]
[404886276,1770649846907,-194.46611918,0.00040382,120]
[404886277,1770649846916,-194.46611918,0.00040382,120]
[404886278,1770649846925,-194.46611918,0.00040382,120]
[404886279,1770649846935,-194.46611918,0.00040382,120]
[404886280,1770649846944,-194.46611918,0.00040382,120]
[404886281,1770649846954,-194.46611918,0.00040382,120]
[404886282,1770649846963,-194.46611918,0.00040382,120]
[404886283,1770649846973,-194.46611918,0.00040382,120]
[404886284,1770649846982,-448.9315999,0.00040382,120]
[404886285,1770649846992,-191.31787813,0.00040382,120]
[404886286,1770649847001,-572.36802364,0.00040382,30]
[404886287,1770649847011,-202.05854779,0.00040382,120]
[404886288,1770649847020,-239.09846896,0.00040382,30]
[404886289,1770649847030,-520.72485083,0.00040382,30]
[404886290,1770649847040,-173.59559064,0.00040382,60]
[404886291,1770649847050,-161.66085203,0.00040382,30]
[404886292,1770649847059,-247.37170542,0.00040382,120]
[404886293,1770649847069,-423.7383403,0.00040382,120]
[404886294,1770649847079,-344.60316885,0.00040382,30]
[404886295,1770649847088,-241.64158091,0.00040382,30]
[404886296,1770649847099,-443.03338085,0.00040382,31]
[404886297,1770649847108,-661.29102801,0.00040382,120]
[404886298,1770649847118,-530.3956487,0.00040382,120]
[404886299,1770649847130,-486.00301052,0.00040382,120]
[404886300,1770649847139,-205.20581825,0.00040382,120]
[404886301,1770649847149,-515.69467113,0.00040382,60]
[404886302,1770649847158,-707.00392248,0.00040382,60]
[404886303,1770649847168,-565.49330171,0.00040382,120]
[404886304,1770649847178,-986.4590195,0.00040382,120]
[404886305,1770649847187,-370.42107586,0.00040382,30]
[404886306,1770649847197,-644.30755155,0.00040382,30]
[404886307,1770649847207,-441.2050397,0.00040382,30]
[404886308,1770649847217,-630.7800465,0.00040382,33]
[404886309,1770649847227,-425.00293775,0.00040382,31]
[404886310,1770649847237,-282.0,0.00040382,120]
[404886311,1770649847247,-719.60079,0.00040382,60]
[404886312,1770649847257,-279.0,0.00040382,120]
[404886313,1770649847267,-30000.0,0.00040382,120]
[404886314,1770649847277,-256.0,0.00040382,120]
[404886315,1770649847287,-250.0,0.00040382,10]
[404886316,1770649847296,-250.0,0.00040382,10]
[404886317,1770649847305,-250.0,0.00040382,10]
[404886318,1770649847315,-317.520722,0.00040382,120]
[404886319,1770649847325,-317.520722,0.00040382,120]
[404886320,1770649847334,-317.520722,0.00040382,120]
[404886321,1770649847343,-317.520722,0.00040382,120]
[404886322,1770649847352,-317.520722,0.00040382,120]
[404886323,1770649847362,-317.520722,0.00040382,120]
[404886324,1770649847371,-317.520722,0.00040382,120]
[404886325,1770649847383,-317.520722,0.00040382,120]
[404886326,1770649847393,-317.520722,0.00040382,120]
[404886327,1770649847402,-317.520722,0.00040382,120]
[404886328,1770649847412,-317.520722,0.00040382,120]
[404886329,1770649847421,-317.520722,0.00040382,120]
[404886330,1770649847431,-317.520722,0.00040382,120]
[404886331,1770649847441,-317.520722,0.00040382,120]
[404886332,1770649847450,-317.520722,0.00040382,120]
[404886333,1770649847459,-317.520722,0.00040382,120]
[404886334,1770649847469,-151.0,0.00040382,120]
[404886335,1770649847479,-317.520722,0.00040382,120]
[404886336,1770649847489,-317.520722,0.00040382,120]
[404886337,1770649847498,-151.0,0.00040382,120]
[404886338,1770649847507,-317.520722,0.00040382,120]
[404886339,1770649847517,-151.0,0.00040382,120]
[404886340,1770649847526,-317.520718,0.00040382,120]
[404886341,1770649847535,-151.0,0.00040382,120]
[404886342,1770649847545,-151.0,0.00040382,120]
[404886343,1770649847554,-151.0,0.00040382,120]
[404886344,1770649847564,-151.0,0.00040382,120]
[404886345,1770649847573,-151.0,0.00040382,120]
[404886346,1770649847583,-151.0,0.00040382,120]
[404886347,1770649847592,-151.0,0.00040382,120]
[404886348,1770649847601,-151.0,0.00040382,120]
[404886349,1770649847611,-151.0,0.00040382,120]
[404886350,1770649847620,-151.0,0.00040382,120]
[404886351,1770649847634,-151.0,0.00040382,120]
[404886352,1770649847644,-151.0,0.00040382,120]
[404886353,1770649847653,-151.0,0.00040382,120]
[404886354,1770649847662,-151.0,0.00040382,120]
[404886355,1770649847673,-232.203422,0.00040382,120]
[404886356,1770649847683,-345.0,0.00040382,60]
[404886357,1770649847693,-379.7196327,0.000404,7]
[404886358,1770649847705,-2469.78,0.000404,14]
[404886359,1770649847714,-838.72,0.000404,14]
[404886360,1770649847724,-600.0,0.00041189,60]
[404886361,1770649847734,-1000.0,0.00041382,2]
[404886362,1770649847743,-1000.0,0.00041382,2]
[404886363,1770649847753,-1000.0,0.00041382,2]
[404886364,1770649847762,-1000.0,0.00041382,2]
[404886365,1770649847772,-1000.0,0.00041382,2]
[404886366,1770649847781,-1000.0,0.00041382,2]
[404886367,1770649847791,-1000.0,0.00041382,2]
[404886368,1770649847800,-1000.0,0.00041382,2]
[404886369,1770649847809,-1000.0,0.00041382,2]
[404886370,1770649847820,-1000.0,0.00041382,2]
[404886371,1770649847828,-1000.0,0.00041382,2]
[404886372,1770649847838,-1000.0,0.00041382,2]
[404886373,1770649847847,-1000.0,0.00041382,2]
[404886374,1770649847857,-1000.0,0.00041382,2]
[404886375,1770649847866,-1000.0,0.00041382,2]
[404886376,1770649847875,-1000.0,0.00041382,2]
[404886377,1770649847887,-1000.0,0.00041382,2]
[404886378,1770649847897,-1000.0,0.00041382,2]
[404886379,1770649847907,-1000.0,0.00041382,2]
[404886380,1770649847916,-1000.0,0.00041382,2]
[404886381,1770649847925,-1000.0,0.00041382,2]
[404886382,1770649847935,-1000.0,0.00041382,2]
[404886383,1770649847945,-1000.0,0.00041382,2]
[404886384,1770649847954,-1000.0,0.00041382,2]
[404886385,1770649847964,-1000.0,0.00041382,2]
[404886386,1770649847973,-1000.0,0.00041382,2]
[404886387,1770649847983,-1000.0,0.00041382,2]
[404886388,1770649847993,-1000.0,0.00041382,2]
[404886389,1770649848003,-1000.0,0.00041382,2]
[404886390,1770649848012,-1000.0,0.00041382,2]
[404886391,1770649848022,-1000.0,0.00041382,2]
[404886392,1770649848031,-211.0,0.00041382,2]
[404886393,1770649848041,-21552.1261,0.00041382,2]
[404886394,1770649848051,-172.98,0.00042,30]
[404886395,1770649848060,-2469.78,0.000433,14]
[404886396,1770649848070,-172.98,0.000441,30]
[404886397,1770649848080,-720.0,0.00045307,60]
[404886398,1770649848089,-2469.78,0.000468,14]
[404886399,1770649848099,-1000.0,0.00048767,7]
[404886400,1770649848109,-179.45498576,0.00049314,120]
[404886401,1770649848119,-5000.0,0.00049314,120]
[404886402,1770649848128,-5000.0,0.00049314,120]
[404886403,1770649848139,-5000.0,0.00049314,120]
[404886404,1770649848148,-5000.0,0.00049314,120]
[404886405,1770649848158,-5000.0,0.00049314,120]
[404886406,1770649848167,-151.0,0.00049314,120]
[404886407,1770649848176,-5000.0,0.00049314,120]
[404886408,1770649848186,-156.587,0.00049314,120]
[404886409,1770649848195,-500.0,0.00049314,120]
[404886410,1770649848204,-162.380719,0.00049314,120]
[404886411,1770649848214,-5000.0,0.00049314,120]
[404886412,1770649848224,-168.3888056,0.00049314,120]
[404886413,1770649848233,-5000.0,0.00049314,120]
[404886414,1770649848243,-5000.0,0.00049314,120]
[404886415,1770649848252,-174.61919141,0.00049314,120]
[404886416,1770649848262,-5000.0,0.00049314,120]